fUST/lending_fUST_20250802
["ID","MTS","AMOUNT","RATE_DAILY","PERIOD"]
[376851877,1754141439810,-500.0,0.00024573,2]
[376851878,1754141439819,-622.01561827,0.00024573,2]
[376851879,1754141439829,-500.0,0.00024573,2]
[376851880,1754141439838,-500.0,0.00024573,2]
[376851881,1754141439847,-500.0,0.00024573,2]
[376851882,1754141439856,-500.0,0.00024573,2]
[376851883,1754141439866,-500.0,0.00024573,2]
[376851884,1754141439875,-500.0,0.00024573,2]
[376851885,1754141439885,-500.0,0.00024573,2]
[376851886,1754141439895,-596.28347878,0.00024573,2]
[376851887,1754141439904,-500.0,0.00024573,2]
[376851888,1754141439917,-500.0,0.00024573,2]
[376851889,1754141439927,-150.37690274,0.00024573,2]
[376851890,1754141439936,-500.0,0.00024573,2]
[376851891,1754141439946,-500.0,0.00024573,2]
[376851892,1754141439955,-4974.97,0.000246,7]
[376851893,1754141439965,-455.99,0.000246,7]
[376851894,1754141439975,-1894.04,0.000246,7]
[376851895,1754141439984,-33032.20639094,0.0002465,2]
[376851896,1754141439993,-223.58,0.00024781,7]
[376851897,1754141440003,-524.4297353,0.000248,2]
[376851898,1754141440012,-420.0,0.00024861,2]
[376851899,1754141440021,-500.0,0.00024873,2]
[376851900,1754141440030,-227.39178666,0.00024873,2]
[376851901,1754141440039,-600.0,0.00024873,2]
[376851902,1754141440048,-500.0,0.00024873,2]
[376851903,1754141440057,-150.0,0.00024873,2]
[376851904,1754141440067,-500.0,0.00024873,2]
[376851905,1754141440076,-500.0,0.00024873,2]
[376851906,1754141440086,-500.0,0.00024873,2]
[376851907,1754141440095,-500.0,0.00024873,2]
[376851908,1754141440104,-503.18113681,0.00024873,2]
[376851909,1754141440113,-500.0,0.00024873,2]
[376851910,1754141440123,-500.0,0.00024873,2]
[376851911,1754141440133,-223.58610055,0.00024881,7]
[376851912,1754141440142,-314.65784118,0.0002489,2]
[376851913,1754141440152,-533.71141278,0.00024899,2]
[376851914,1754141440161,-460.0,0.000249,2]
[376851915,1754141440170,-460.0,0.000249,2]
[376851916,1754141440180,-272866.700196,0.000249,2]
[376851917,1754141440194,-327.0,0.00024921,2]
[376851918,1754141440203,-151.52,0.00024982,2]
[376851919,1754141440213,-1000.0,0.00025121,2]
[376851920,1754141440222,-500.0,0.00025121,2]
[376851921,1754141440232,-1000.0,0.00025121,2]
[376851922,1754141440242,-1000.0,0.00025121,2]
[376851923,1754141440251,-1000.0,0.00025121,2]
[376851924,1754141440260,-12646.87439643,0.00025294,2]
[376851925,1754141440272,-460.86285458,0.00025306,2]
[376851926,1754141440282,-160.0,0.00025306,2]
[376851927,1754141440292,-841.70373825,0.00025306,2]
[376851928,1754141440301,-160.0,0.00025306,2]
[376851929,1754141440310,-160.0,0.00025306,2]
[376851930,1754141440319,-160.0,0.00025306,2]
[376851931,1754141440329,-160.0,0.00025306,2]
[376851932,1754141440338,-527.02465094,0.00025306,2]
[376851934,1754141440348,-160.0,0.00025306,2]
[376851936,1754141440357,-216.27517063,0.00025306,2]
[376851938,1754141440366,-160.0,0.00025306,2]
[376851939,1754141440376,-160.0,0.00025306,2]
[376851940,1754141440385,-215.0795835,0.00025306,2]
[376851942,1754141440394,-231.57249719,0.00025306,2]
[376851943,1754141440403,-500.0,0.00025421,2]
[376851944,1754141440413,-1200.0,0.00025421,2]
[376851945,1754141440423,-1000.0,0.00025421,2]
[376851946,1754141440433,-250.0,0.00025421,2]
[376851947,1754141440443,-1000.0,0.00025421,2]
[376851948,1754141440452,-1000.0,0.00025421,2]
[376851949,1754141440462,-1000.0,0.00025421,2]
[376851950,1754141440471,-503.03063813,0.00025421,2]
[376851951,1754141440482,-1000.0,0.00025421,2]
[376851952,1754141440491,-393.65142561,0.00025421,2]
[376851953,1754141440500,-578.5960598,0.00025578,2]
[376851954,1754141440510,-153.0,0.00025578,2]
[376851955,1754141440519,-2777.47346041,0.00025611,2]
[376851956,1754141440528,-200.0,0.00025629,15]
[376851957,1754141440537,-200.0,0.00025629,15]
[376851958,1754141440546,-200.0,0.00025629,15]
[376851959,1754141440555,-200.0,0.00025629,15]
[376851960,1754141440564,-200.0,0.00025629,15]
[376851961,1754141440573,-200.0,0.00025629,15]
[376851962,1754141440582,-200.0,0.00025629,15]
[376851963,1754141440591,-1500.0,0.00025668,2]
[376851964,1754141440600,-500.0,0.00025668,2]
[376851965,1754141440609,-500.0,0.00025668,2]
[376851966,1754141440619,-508.04415326,0.00025668,2]
[376851967,1754141440629,-160.0,0.000257,2]
[376851968,1754141440638,-1719.84442236,0.000258,2]
[376851969,1754141440647,-300.9052778,0.00025823,2]
[376851970,1754141440657,-721.64,0.00025876,3]
[376851971,1754141440669,-360.82,0.00025876,3]
[376851972,1754141440679,-8217.54,0.00025885,4]
[376851973,1754141440688,-1800.0,0.00025968,2]
[376851974,1754141440697,-350.0,0.00025968,2]
[376851975,1754141440708,-1500.0,0.00025968,2]
[376851976,1754141440717,-1500.0,0.00025968,2]
[376851977,1754141440726,-1500.0,0.00025968,2]
[376851978,1754141440736,-16772.36715034,0.00026,2]
[376851979,1754141440746,-339.49739257,0.00026,2]
[376851980,1754141440755,-2147.0,0.00026076,2]
[376851981,1754141440765,-578.5960598,0.00026078,2]
[376851982,1754141440774,-153.0,0.00026078,2]
[376851983,1754141440784,-153.0,0.00026078,2]
[376851984,1754141440794,-578.5960598,0.00026078,2]
[376851985,1754141440805,-2000.0,0.00026216,2]
[376851986,1754141440816,-260.0,0.00026248,2]
[376851987,1754141440837,-250.0,0.00026261,2]
[376851988,1754141440846,-153.0,0.00026306,2]
[376851989,1754141440856,-323.9185187,0.00026306,2]
[376851990,1754141440867,-364.3585429,0.00026306,2]
[376851991,1754141440876,-153.0,0.00026306,2]
[376851992,1754141440886,-153.0,0.00026306,2]
[376851993,1754141440895,-153.0,0.00026306,2]
[376851994,1754141440904,-635.0,0.00026315,2]
[376851995,1754141440915,-407.0,0.00026315,2]
[376851996,1754141440925,-600.0,0.00026368,2]
[376851997,1754141440934,-160.1265298,0.00026411,2]
[376851998,1754141440943,-2400.0,0.00026516,2]
[376851999,1754141440953,-200.0,0.00026516,2]
[376852000,1754141440963,-1000.0,0.00026516,2]
[376852001,1754141440972,-2000.0,0.00026516,2]
[376852002,1754141440981,-500.0,0.00026516,2]
[376852003,1754141440991,-466.24883805,0.0002663,2]
[376852004,1754141440999,-2777.47346041,0.00026749,2]
[376852005,1754141441009,-1500.0,0.00026764,2]
[376852006,1754141441018,-360.0,0.00026796,2]
[376852007,1754141441028,-150.0,0.00026848,2]
[376852008,1754141441037,-750.51148137,0.00026849,2]
[376852009,1754141441046,-462.17282815,0.00026849,10]
[376852010,1754141441055,-460.79524971,0.00026849,10]
[376852011,1754141441064,-460.0,0.00026849,10]
[376852012,1754141441073,-460.0,0.00026849,10]
[376852013,1754141441083,-460.0,0.00026849,10]
[376852014,1754141441092,-470.11070039,0.00026849,10]
[376852015,1754141441101,-460.94049731,0.00026849,10]
[376852016,1754141441114,-460.0,0.00026849,10]
[376852017,1754141441131,-460.0,0.00026849,10]
[376852018,1754141441140,-602.58313605,0.00026849,10]
[376852019,1754141441149,-460.0,0.00026849,10]
[376852020,1754141441158,-151.0,0.00026849,7]
[376852021,1754141441169,-151.0,0.00026849,7]
[376852022,1754141441178,-460.0,0.00026849,10]
[376852023,1754141441190,-500.0,0.00026849,10]
[376852024,1754141441199,-460.0,0.00026849,10]
[376852025,1754141441208,-460.0,0.00026849,10]
[376852026,1754141441218,-460.0,0.00026849,10]
[376852027,1754141441227,-460.0,0.00026849,10]
[376852028,1754141441236,-470.45389539,0.00026849,10]
[376852029,1754141441246,-460.0,0.00026849,10]
[376852030,1754141441255,-460.0,0.00026849,10]
[376852031,1754141441264,-460.0,0.00026849,10]
[376852032,1754141441273,-310.48121328,0.00026849,10]
[376852033,1754141441282,-460.0,0.00026849,10]
[376852034,1754141441291,-460.0,0.00026849,10]
[376852035,1754141441300,-460.0,0.00026849,10]
[376852036,1754141441310,-460.0,0.00026849,10]
[376852037,1754141441319,-460.0,0.00026849,10]
[376852038,1754141441328,-461.81384529,0.00026849,10]
[376852039,1754141441338,-460.0,0.00026849,10]
[376852040,1754141441347,-419.93714095,0.00026849,10]
[376852041,1754141441357,-460.0,0.00026849,10]
[376852042,1754141441366,-460.0,0.00026849,10]
[376852043,1754141441375,-460.0,0.00026849,10]
[376852044,1754141441384,-460.0,0.00026849,10]
[376852045,1754141441393,-460.0,0.00026849,10]
[376852046,1754141441403,-460.92687533,0.00026849,10]
[376852047,1754141441414,-462.1208338,0.00026849,10]
[376852048,1754141441423,-467.75192879,0.00026849,10]
[376852049,1754141441433,-460.0,0.00026849,10]
[376852050,1754141441442,-460.0,0.00026849,10]
[376852051,1754141441451,-460.0,0.00026849,10]
[376852052,1754141441460,-460.0,0.00026849,10]
[376852053,1754141441469,-460.0,0.00026849,10]
[376852054,1754141441479,-460.0,0.00026849,10]
[376852055,1754141441488,-460.0,0.00026849,10]
[376852056,1754141441497,-460.0,0.00026849,10]
[376852057,1754141441506,-460.0,0.00026849,10]
[376852058,1754141441516,-460.0,0.00026849,10]
[376852059,1754141441525,-460.0,0.00026849,10]
[376852060,1754141441534,-460.0,0.00026849,10]
[376852061,1754141441543,-400.0,0.00026849,10]
[376852062,1754141441552,-460.0,0.00026849,10]
[376852063,1754141441562,-356.87804565,0.00026849,10]
[376852064,1754141441571,-460.0,0.00026849,10]
[376852065,1754141441580,-460.0,0.00026849,10]
[376852066,1754141441590,-460.0,0.00026849,10]
[376852067,1754141441599,-460.0,0.00026849,10]
[376852068,1754141441609,-465.23746885,0.00026849,10]
[376852069,1754141441618,-470.72057866,0.00026849,10]
[376852070,1754141441627,-233.92515939,0.00026849,10]
[376852071,1754141441636,-460.0,0.00026849,10]
[376852072,1754141441645,-460.0,0.00026849,10]
[376852073,1754141441655,-460.0,0.00026849,10]
[376852074,1754141441665,-607.20070938,0.00026849,10]
[376852075,1754141441674,-460.0,0.00026849,10]
[376852076,1754141441683,-460.0,0.00026849,10]
[376852077,1754141441693,-460.0,0.00026849,10]
[376852078,1754141441702,-468.85519734,0.00026849,10]
[376852079,1754141441712,-460.0,0.00026849,10]
[376852080,1754141441721,-460.0,0.00026849,10]
[376852081,1754141441730,-460.0,0.00026849,10]
[376852082,1754141441740,-460.0,0.00026849,10]
[376852083,1754141441749,-460.0,0.00026849,10]
[376852084,1754141441758,-471.28718924,0.00026849,10]
[376852085,1754141441767,-463.48310752,0.00026849,10]
[376852086,1754141441777,-334.42189072,0.00026849,10]
[376852087,1754141441786,-209.39485558,0.00026849,10]
[376852088,1754141441795,-460.0,0.00026849,10]
[376852089,1754141441804,-460.0,0.00026849,10]
[376852090,1754141441814,-460.0,0.00026849,10]
[376852091,1754141441823,-460.0,0.00026849,10]
[376852092,1754141441832,-460.0,0.00026849,10]
[376852093,1754141441841,-460.0,0.00026849,10]
[376852094,1754141441850,-460.0,0.00026849,10]
[376852095,1754141441859,-464.58217864,0.00026849,10]
[376852096,1754141441869,-460.0,0.00026849,10]
[376852097,1754141441878,-460.0,0.00026849,10]
[376852098,1754141441887,-460.0,0.00026849,10]
[376852099,1754141441896,-460.0,0.00026849,10]
[376852100,1754141441905,-460.0,0.00026849,10]
[376852101,1754141441917,-460.0,0.00026849,10]
[376852102,1754141441926,-460.0,0.00026849,10]
[376852103,1754141441935,-460.0,0.00026849,10]
[376852104,1754141441944,-460.0,0.00026849,10]
[376852105,1754141441954,-460.0,0.00026849,10]
[376852106,1754141441963,-460.0,0.00026849,10]
[376852107,1754141441972,-460.0,0.00026849,10]
[376852108,1754141441982,-460.0,0.00026849,10]
[376852109,1754141441991,-460.0,0.00026849,10]
[376852110,1754141442000,-460.0,0.00026849,10]
[376852111,1754141442009,-460.0,0.00026849,10]
[376852112,1754141442018,-460.0,0.00026849,10]
[376852113,1754141442027,-460.0,0.00026849,10]
[376852114,1754141442036,-460.0,0.00026849,10]
[376852115,1754141442045,-463.67669307,0.00026849,10]
[376852116,1754141442054,-460.0,0.00026849,10]
[376852117,1754141442063,-460.0,0.00026849,10]
[376852118,1754141442072,-460.0,0.00026849,10]
[376852119,1754141442081,-460.0,0.00026849,10]
[376852120,1754141442090,-488.93073764,0.00026849,10]
[376852121,1754141442099,-460.0,0.00026849,10]
[376852122,1754141442109,-460.0,0.00026849,10]
[376852123,1754141442119,-460.0,0.00026849,10]
[376852124,1754141442128,-460.0,0.00026849,10]
[376852125,1754141442138,-460.0,0.00026849,10]
[376852126,1754141442147,-460.0,0.00026849,10]
[376852127,1754141442156,-460.0,0.00026849,10]
[376852128,1754141442166,-460.0,0.00026849,10]
[376852129,1754141442175,-460.0,0.00026849,10]
[376852130,1754141442187,-460.0,0.00026849,10]
[376852131,1754141442198,-460.0,0.00026849,10]
[376852132,1754141442207,-460.0,0.00026849,10]
[376852133,1754141442338,-466.52144372,0.00026849,10]
[376852134,1754141442347,-500.0,0.00026849,10]
[376852135,1754141442357,-514.82522081,0.00026849,10]
[376852136,1754141442367,-593.53782634,0.00026849,10]
[376852137,1754141442377,-460.0,0.00026849,10]
[376852138,1754141442387,-460.0,0.00026849,10]
[376852139,1754141442397,-460.0,0.00026849,10]
[376852140,1754141442408,-460.0,0.00026849,10]
[376852141,1754141442418,-460.0,0.00026849,10]
[376852142,1754141442427,-460.0,0.00026849,10]
[376852143,1754141442436,-462.62816395,0.00026849,10]
[376852144,1754141442445,-460.0,0.00026849,10]
[376852145,1754141442456,-460.0,0.00026849,10]
[376852146,1754141442466,-460.0,0.00026849,10]
[376852147,1754141442475,-460.0,0.00026849,10]
[376852148,1754141442486,-463.15336547,0.00026849,10]
[376852149,1754141442495,-460.0,0.00026849,10]
[376852150,1754141442505,-460.0,0.00026849,10]
[376852151,1754141442514,-460.0,0.00026849,7]
[376852152,1754141442523,-460.0,0.00026849,10]
[376852153,1754141442532,-460.0,0.00026849,10]
[376852154,1754141442541,-460.0,0.00026849,7]
[376852155,1754141442550,-460.0,0.00026849,7]
[376852157,1754141442559,-460.0,0.00026849,7]
[376852159,1754141442568,-460.0,0.00026849,7]
[376852161,1754141442577,-460.0,0.00026849,10]
[376852164,1754141442586,-215.72438698,0.00026849,10]
[376852166,1754141442597,-460.0,0.00026849,10]
[376852168,1754141442606,-462.35365121,0.00026849,10]
[376852171,1754141442615,-460.0,0.00026849,10]
[376852173,1754141442625,-461.80317309,0.00026849,10]
[376852175,1754141442635,-460.0,0.00026849,10]
[376852177,1754141442644,-460.0,0.00026849,10]
[376852179,1754141442654,-460.0,0.00026849,3]
[376852181,1754141442665,-460.0,0.00026849,3]
[376852183,1754141442674,-460.0,0.00026849,3]
[376852186,1754141442684,-460.0,0.00026849,3]
[376852188,1754141442693,-460.0,0.00026849,3]
[376852190,1754141442703,-460.0,0.00026849,3]
[376852192,1754141442713,-460.0,0.00026849,3]
[376852194,1754141442723,-460.0,0.00026849,3]
[376852196,1754141442732,-460.0,0.00026849,3]
[376852198,1754141442742,-460.0,0.00026849,3]
[376852200,1754141442752,-460.0,0.00026849,10]
[376852202,1754141442762,-463.07,0.00026849,10]
[376852204,1754141442773,-460.0,0.00026849,10]
[376852206,1754141442782,-460.0,0.00026849,10]
[376852208,1754141442792,-460.0,0.00026849,10]
[376852210,1754141442802,-460.0,0.00026849,10]
[376852212,1754141442811,-591.52922945,0.00026849,10]
[376852214,1754141442820,-460.0,0.00026849,10]
[376852216,1754141442830,-460.0,0.00026849,10]
[376852218,1754141442839,-460.0,0.00026849,10]
[376852220,1754141442848,-460.0,0.00026849,10]
[376852222,1754141442857,-460.0,0.00026849,10]
[376852224,1754141442866,-460.0,0.00026849,10]
[376852226,1754141442876,-460.0,0.00026849,10]
[376852228,1754141442886,-460.0,0.00026849,10]
[376852230,1754141442896,-460.0,0.00026849,10]
[376852232,1754141442906,-603.62257279,0.00026849,10]
[376852234,1754141442917,-460.0,0.00026849,10]
[376852236,1754141442926,-460.0,0.00026849,10]
[376852238,1754141442935,-460.0,0.00026849,10]
[376852240,1754141442945,-460.0,0.00026849,10]
[376852242,1754141442955,-460.0,0.00026849,10]
[376852244,1754141442964,-460.0,0.00026849,10]
[376852246,1754141442974,-460.0,0.00026849,10]
[376852248,1754141442984,-460.0,0.00026849,10]
[376852250,1754141442993,-460.0,0.00026849,10]
[376852252,1754141443003,-460.0,0.00026849,10]
[376852254,1754141443013,-344.792922,0.00026849,10]
[376852255,1754141443022,-460.0,0.00026849,10]
[376852256,1754141443031,-464.740153,0.00026849,10]
[376852257,1754141443040,-460.0,0.00026849,10]
[376852258,1754141443050,-460.0,0.00026849,10]
[376852259,1754141443059,-460.0,0.00026849,10]
[376852260,1754141443068,-460.0,0.00026849,10]
[376852261,1754141443078,-460.0,0.00026849,10]
[376852262,1754141443087,-460.0,0.00026849,10]
[376852263,1754141443096,-533.29614244,0.00026849,10]
[376852264,1754141443106,-460.0,0.00026849,10]
[376852265,1754141443115,-460.0,0.00026849,10]
[376852266,1754141443124,-221.33478414,0.00026849,10]
[376852267,1754141443133,-461.99599282,0.00026849,10]
[376852268,1754141443143,-460.0,0.00026849,10]
[376852269,1754141443152,-460.0,0.00026849,10]
[376852270,1754141443161,-460.0,0.00026849,10]
[376852271,1754141443172,-465.61557557,0.00026849,10]
[376852272,1754141443181,-460.0,0.00026849,10]
[376852273,1754141443194,-460.0,0.00026849,10]
[376852274,1754141443203,-460.0,0.00026849,10]
[376852275,1754141443213,-460.0,0.00026849,10]
[376852276,1754141443222,-460.0,0.00026849,10]
[376852277,1754141443232,-460.0,0.00026849,10]
[376852278,1754141443241,-460.0,0.00026849,10]
[376852279,1754141443250,-460.0,0.00026849,10]
[376852280,1754141443260,-460.0,0.00026849,10]
[376852281,1754141443269,-460.0,0.00026849,10]
[376852282,1754141443279,-460.0,0.00026849,10]
[376852283,1754141443289,-460.0,0.00026849,10]
[376852284,1754141443298,-460.0,0.00026849,10]
[376852285,1754141443307,-460.0,0.00026849,10]
[376852286,1754141443316,-460.0,0.00026849,10]
[376852287,1754141443325,-460.0,0.00026849,10]
[376852288,1754141443334,-341.37658691,0.00026849,10]
[376852289,1754141443344,-460.0,0.00026849,10]
[376852290,1754141443353,-460.0,0.00026849,10]
[376852291,1754141443362,-460.0,0.00026849,10]
[376852292,1754141443372,-460.0,0.00026849,10]
[376852293,1754141443381,-460.0,0.00026849,10]
[376852294,1754141443390,-460.0,0.00026849,10]
[376852295,1754141443399,-481.62189173,0.00026849,10]
[376852296,1754141443408,-460.0,0.00026849,10]
[376852297,1754141443418,-460.0,0.00026849,10]
[376852298,1754141443428,-460.0,0.00026849,10]
[376852299,1754141443437,-460.0,0.00026849,10]
[376852300,1754141443446,-460.0,0.00026849,10]
[376852301,1754141443456,-460.0,0.00026849,10]
[376852302,1754141443465,-460.0,0.00026849,10]
[376852303,1754141443475,-460.0,0.00026849,10]
[376852304,1754141443484,-460.0,0.00026849,10]
[376852305,1754141443496,-460.0,0.00026849,10]
[376852306,1754141443505,-460.0,0.00026849,10]
[376852307,1754141443514,-460.0,0.00026849,10]
[376852308,1754141443523,-460.0,0.00026849,10]
[376852309,1754141443532,-460.0,0.00026849,10]
[376852310,1754141443541,-460.0,0.00026849,10]
[376852311,1754141443551,-460.0,0.00026849,10]
[376852312,1754141443560,-460.0,0.00026849,10]
[376852313,1754141443569,-460.0,0.00026849,10]
[376852314,1754141443579,-460.0,0.00026849,10]
[376852315,1754141443588,-460.0,0.00026849,10]
[376852316,1754141443597,-181.63424312,0.00026849,10]
[376852317,1754141443606,-460.0,0.00026849,10]
[376852318,1754141443615,-460.0,0.00026849,10]
[376852319,1754141443624,-460.0,0.00026849,10]
[376852320,1754141443633,-305.53855911,0.00026849,10]
[376852321,1754141443642,-460.0,0.00026849,10]
[376852322,1754141443651,-460.0,0.00026849,10]
[376852323,1754141443660,-460.0,0.00026849,10]
[376852324,1754141443672,-151.0,0.00026849,7]
[376852325,1754141443681,-460.0,0.00026849,10]
[376852326,1754141443690,-460.0,0.00026849,10]
[376852327,1754141443698,-462.6906716,0.00026849,10]
[376852328,1754141443708,-461.60941473,0.00026849,10]
[376852329,1754141443717,-460.0,0.00026849,10]
[376852330,1754141443726,-522.82321363,0.00026849,10]
[376852331,1754141443735,-460.0,0.00026849,10]
[376852332,1754141443744,-460.0,0.00026849,10]
[376852333,1754141443754,-460.0,0.00026849,10]
[376852334,1754141443763,-460.0,0.00026849,10]
[376852335,1754141443772,-460.0,0.00026849,10]
[376852336,1754141443782,-460.0,0.00026849,10]
[376852337,1754141443791,-460.0,0.00026849,10]
[376852338,1754141443800,-460.0,0.00026849,10]
[376852339,1754141443809,-460.0,0.00026849,10]
[376852340,1754141443818,-460.0,0.00026849,10]
[376852341,1754141443827,-460.0,0.00026849,10]
[376852342,1754141443836,-460.0,0.00026849,10]
[376852343,1754141443845,-460.0,0.00026849,10]
[376852344,1754141443854,-460.0,0.00026849,10]
[376852345,1754141443867,-594.54946752,0.00026849,10]
[376852346,1754141443879,-460.0,0.00026849,10]
[376852347,1754141443891,-460.0,0.00026849,10]
[376852348,1754141443904,-460.0,0.00026849,10]
[376852349,1754141443916,-345.6,0.00026849,10]
[376852350,1754141443927,-461.34808089,0.00026849,10]
[376852351,1754141443937,-460.83514531,0.00026849,10]
[376852352,1754141443947,-460.0,0.00026849,10]
[376852353,1754141443959,-460.0,0.00026849,10]
[376852354,1754141443971,-460.0,0.00026849,10]
[376852355,1754141443982,-251.64256402,0.00026849,10]
[376852356,1754141443993,-460.0,0.00026849,10]
[376852357,1754141444004,-460.0,0.00026849,10]
[376852358,1754141444015,-460.0,0.00026849,10]
[376852359,1754141444027,-188.47278744,0.00026849,10]
[376852360,1754141444038,-460.0,0.00026849,10]
[376852361,1754141444049,-460.0,0.00026849,10]
[376852362,1754141444060,-460.0,0.00026849,10]
[376852363,1754141444073,-460.0,0.00026849,10]
[376852364,1754141444085,-460.0,0.00026849,10]
[376852365,1754141444096,-460.0,0.00026849,10]
[376852366,1754141444108,-181.06151433,0.00026849,10]
[376852367,1754141444119,-460.0,0.00026849,10]
[376852368,1754141444130,-460.0,0.00026849,10]
[376852369,1754141444141,-460.0,0.00026849,10]
[376852370,1754141444151,-460.0,0.00026849,10]
[376852371,1754141444162,-460.0,0.00026849,10]
[376852372,1754141444173,-460.0,0.00026849,10]
[376852373,1754141444186,-460.0,0.00026849,10]
[376852374,1754141444199,-460.0,0.00026849,10]
[376852375,1754141444210,-460.0,0.00026849,10]
[376852376,1754141444222,-505.42577883,0.00026849,10]
[376852377,1754141444233,-460.0,0.00026849,10]
[376852378,1754141444243,-460.0,0.00026849,10]
[376852379,1754141444252,-460.0,0.00026849,10]
[376852380,1754141444266,-460.0,0.00026849,10]
[376852381,1754141444277,-460.0,0.00026849,10]
[376852382,1754141444288,-460.0,0.00026849,10]
[376852383,1754141444298,-573.95347342,0.00026849,10]
[376852384,1754141444309,-460.0,0.00026849,10]
[376852385,1754141444320,-462.6074163,0.00026849,10]
[376852386,1754141444331,-460.0,0.00026849,10]
[376852387,1754141444342,-460.0,0.00026849,10]
[376852388,1754141444353,-460.0,0.00026849,10]
[376852389,1754141444365,-460.0,0.00026849,10]
[376852390,1754141444376,-460.0,0.00026849,10]
[376852391,1754141444387,-460.0,0.00026849,10]
[376852392,1754141444398,-460.0,0.00026849,10]
[376852393,1754141444410,-460.0,0.00026849,10]
[376852394,1754141444423,-460.0,0.00026849,10]
[376852395,1754141444435,-460.0,0.00026849,10]
[376852396,1754141444445,-460.0,0.00026849,10]
[376852397,1754141444455,-279.62347941,0.00026849,10]
[376852398,1754141444464,-460.0,0.00026849,10]
[376852399,1754141444475,-460.0,0.00026849,10]
[376852400,1754141444486,-466.26964999,0.00026849,10]
[376852401,1754141444498,-460.0,0.00026849,10]
[376852402,1754141444510,-460.0,0.00026849,10]
[376852403,1754141444523,-460.0,0.00026849,10]
[376852406,1754141444535,-460.0,0.00026849,10]
[376852407,1754141444546,-460.0,0.00026849,10]
[376852408,1754141444556,-460.0,0.00026849,10]
[376852409,1754141444566,-460.0,0.00026849,10]
[376852410,1754141444578,-460.0,0.00026849,10]
[376852411,1754141444588,-163.48,0.00026849,10]
[376852412,1754141444599,-460.0,0.00026849,10]
[376852413,1754141444611,-460.0,0.00026849,10]
[376852414,1754141444622,-213.56731897,0.00026849,10]
[376852415,1754141444632,-460.0,0.00026849,10]
[376852416,1754141444642,-398.6905165,0.00026849,10]
[376852430,1754141446898,-177.62568087,0.00025611,2]
[376852431,1754141446907,-61.3094835,0.00026849,10]
[376852432,1754141446916,-460.0,0.00026849,10]
[376852433,1754141446926,-460.0,0.00026849,10]
[376852434,1754141446936,-460.0,0.00026849,10]
[376852435,1754141446946,-460.0,0.00026849,10]
[376852436,1754141446956,-460.0,0.00026849,10]
[376852437,1754141446965,-460.0,0.00026849,10]
[376852438,1754141446975,-460.0,0.00026849,10]
[376852439,1754141446984,-460.0,0.00026849,10]
[376852440,1754141446994,-460.0,0.00026849,10]
[376852441,1754141447003,-460.0,0.00026849,10]
[376852442,1754141447014,-460.0,0.00026849,10]
[376852443,1754141447024,-460.0,0.00026849,10]
[376852444,1754141447033,-460.0,0.00026849,10]
[376852445,1754141447043,-460.0,0.00026849,10]
[376852446,1754141447053,-266.11003166,0.00026849,10]